bitfinex/quotes_BTCUSD_20251224
["timestamp","ask_amount","ask_price","bid_price","bid_amount"]
[1766619496413,0.116,87736.0,87726.0,0.02512996]
[1766619496614,0.12744,87736.0,87726.0,0.02512996]
[1766619497941,0.12739795,87735.0,87726.0,0.02512996]
[1766619502928,0.116,87735.0,87726.0,0.02512996]
[1766619503351,0.12739795,87735.0,87726.0,0.02512996]
[1766619503552,0.06838852,87734.0,87726.0,0.01144]
[1766619503794,0.06838852,87734.0,87726.0,0.01089]
[1766619503795,0.0113986,87730.0,87726.0,0.01089]
[1766619503995,0.01139873,87729.0,87726.0,0.01089]
[1766619504921,0.06839195,87730.0,87726.0,0.01089]
[1766619505225,0.01139873,87729.0,87726.0,0.01089]
[1766619505652,0.01139847,87731.0,87726.0,0.01089]
[1766619506059,0.01139834,87732.0,87726.0,0.01089]
[1766619507471,0.0113986,87730.0,87726.0,0.01089]
[1766619508052,0.01139847,87731.0,87726.0,0.01089]
[1766619511390,0.0113986,87730.0,87726.0,0.01089]
[1766619513039,0.07982702,87736.0,87730.0,0.000549]
[1766619513273,0.01139808,87734.0,87730.0,0.000549]
[1766619513503,0.01139821,87733.0,87727.0,0.01368996]
[1766619516531,0.01139808,87734.0,87727.0,0.01368996]
[1766619517265,0.18438821,87735.0,87727.0,0.01368996]
[1766619517471,0.06838881,87734.0,87727.0,0.01368996]
[1766619518495,0.01139821,87733.0,87727.0,0.01368996]
[1766619520339,0.01139808,87734.0,87727.0,0.01368996]
[1766619520540,0.01139821,87733.0,87727.0,0.01368996]
[1766619522216,0.01139834,87732.0,87727.0,0.01368996]
[1766619522797,0.01139821,87733.0,87727.0,0.01368996]
[1766619523045,0.116,87735.0,87733.0,0.000549]
[1766619523655,0.116,87735.0,87727.0,0.01368996]
[1766619524741,0.12739795,87735.0,87727.0,0.01368996]
[1766619526472,0.01139808,87734.0,87727.0,0.01368996]
[1766619528361,0.01139821,87733.0,87727.0,0.01368996]
[1766619529028,0.01139834,87732.0,87727.0,0.01368996]
[1766619529252,0.01139821,87733.0,87727.0,0.01368996]
[1766619530398,0.12739795,87735.0,87727.0,0.01368996]
[1766619532380,0.116,87735.0,87727.0,0.01368996]
[1766619536186,0.01139744,87739.0,87727.0,0.01368996]
[1766619536187,0.01139562,87753.0,87736.0,0.01139782]
[1766619536384,0.11899,87747.0,87737.0,0.01144]
[1766619536921,0.11899,87745.0,87737.0,0.01144]
[1766619537126,0.13038666,87745.0,87737.0,0.01144]
[1766619537565,0.11899,87744.0,87737.0,0.01144]
[1766619537939,0.11899,87741.0,87736.0,4.33e-06]
[1766619538115,0.05698548,87742.0,87728.0,0.02283886]
[1766619538116,0.11899,87738.0,87728.0,0.02283886]
[1766619538320,0.11899,87738.0,87728.0,0.01144]
[1766619538524,0.01139795,87735.0,87728.0,0.01144]
[1766619538769,0.12414,87736.0,87728.0,0.01144]
[1766619538962,0.12414,87736.0,87728.0,0.02283886]
[1766619539585,0.12414,87736.0,87729.0,0.01139873]
[1766619540003,0.12414,87736.0,87728.0,0.02283886]
[1766619540555,0.12414,87736.0,87729.0,0.01139873]
[1766619540761,0.12414,87736.0,87730.0,0.0113986]
[1766619541183,0.12414,87736.0,87729.0,0.01139873]
[1766619541341,0.12414,87736.0,87730.0,0.0113986]
[1766619541542,0.12414,87736.0,87728.0,0.02283886]
[1766619541777,0.12414,87736.0,87729.0,0.01139873]
[1766619542386,0.12414,87736.0,87730.0,0.0113986]
[1766619542585,0.12414,87736.0,87729.0,0.01139873]
[1766619543015,0.12414,87736.0,87730.0,0.0113986]
[1766619544020,0.12414,87736.0,87729.0,0.01139873]
[1766619544731,0.12414,87736.0,87729.0,0.06839215]
[1766619544879,0.12414,87736.0,87729.0,0.01139873]
[1766619546134,0.12414,87736.0,87730.0,0.0113986]
[1766619546356,0.12414,87736.0,87729.0,0.01139873]
[1766619547621,0.12414,87736.0,87728.0,0.01144]
[1766619548049,0.12414,87736.0,87728.0,0.02283886]
[1766619548266,0.12414,87736.0,87728.0,0.01144]
[1766619548576,0.12414,87736.0,87728.0,0.02283886]
[1766619549343,0.12414,87736.0,87729.0,0.01139873]
[1766619550267,0.12414,87736.0,87728.0,0.02283886]
[1766619550673,0.12414,87736.0,87729.0,0.01139873]
[1766619550849,0.12414,87736.0,87730.0,0.0113986]
[1766619552038,0.12414,87736.0,87729.0,0.01139873]
[1766619552258,0.12414,87736.0,87730.0,0.0113986]
[1766619553457,0.12414,87736.0,87729.0,0.01139873]
[1766619558052,0.12414,87736.0,87730.0,0.0113986]
[1766619559449,0.12414,87736.0,87728.0,0.02283886]
[1766619560069,0.12414,87736.0,87729.0,0.01139873]
[1766619560925,0.12414,87736.0,87728.0,0.02283886]
[1766619561518,0.12414,87736.0,87729.0,0.01139873]
[1766619561753,0.12414,87736.0,87728.0,0.02283886]
[1766619563026,0.01144,87739.0,87726.0,0.00011]
[1766619563242,0.13553782,87736.0,87726.0,0.00011]
[1766619563415,0.01139795,87735.0,87726.0,0.00011]
[1766619563810,0.12414,87734.0,87726.0,0.00011]
[1766619564207,0.12414,87734.0,87726.0,0.01150912]
[1766619564568,0.12414,87734.0,87726.0,0.00011]
[1766619565334,0.12414,87734.0,87726.0,0.01150912]
[1766619567097,0.12414,87734.0,87726.0,0.00011]
[1766619569482,0.12414,87734.0,87726.0,0.01150912]
[1766619571390,0.12414,87734.0,87726.0,0.00011]
[1766619571581,0.12414,87734.0,87726.0,0.01150912]
[1766619573111,0.12414,87734.0,87726.0,0.00011]
[1766619573262,0.13553808,87734.0,87726.0,0.00011]
[1766619573714,0.12414,87734.0,87726.0,0.00011]
[1766619575743,0.12414,87734.0,87726.0,0.01150912]
[1766619576876,0.12414,87734.0,87726.0,0.00011]
[1766619577694,0.12414,87734.0,87726.0,0.01150912]
[1766619579099,0.12414,87734.0,87726.0,0.00011]
[1766619579480,0.12414,87734.0,87726.0,0.01150912]
[1766619579998,0.12414,87734.0,87726.0,0.00011]
[1766619580209,0.12414,87734.0,87726.0,0.01150912]
[1766619582444,0.12414,87734.0,87726.0,0.00011]
[1766619585261,0.13553808,87734.0,87726.0,0.00011]
[1766619585432,0.12414,87734.0,87726.0,0.00011]
[1766619587936,0.12414,87734.0,87726.0,0.01150912]
[1766619588089,0.12414,87734.0,87726.0,0.00011]
[1766619589294,0.12414,87734.0,87726.0,0.01150912]
[1766619589512,0.12414,87734.0,87726.0,0.00011]
[1766619590248,0.12414,87734.0,87726.0,0.01150912]
[1766619590444,0.123591,87734.0,87728.0,0.01139886]
[1766619591436,0.123591,87734.0,87729.0,0.01139873]
[1766619592444,0.123591,87734.0,87728.0,0.01139886]
[1766619593467,0.123591,87734.0,87726.0,0.00011]
[1766619596227,0.13498908,87734.0,87726.0,0.00011]
[1766619597192,0.13602821,87733.0,87726.0,0.00011]
[1766619597595,0.57272426,87893.0,87707.0,0.01140159]
[1766619597596,0.01140003,87719.0,87707.0,0.01140159]
[1766619597796,0.00011,87726.0,87710.0,0.01144]
[1766619597797,0.01140042,87716.0,87710.0,0.01144]
[1766619597999,0.12463,87715.0,87710.0,0.01144]
[1766619598212,0.125069,87710.0,87705.0,0.01368996]
[1766619598553,0.12463,87710.0,87705.0,0.01368996]
[1766619600779,0.12463,87710.0,87704.0,0.01144]
[1766619602228,0.1360312,87710.0,87704.0,0.01144]
[1766619602538,0.12463,87710.0,87704.0,0.01144]
[1766619602771,0.1360312,87710.0,87704.0,0.01144]
[1766619602927,0.12463,87710.0,87704.0,0.01144]
[1766619603123,0.12463,87710.0,87704.0,0.02284198]
[1766619603381,0.12463,87710.0,87704.0,0.01144]
[1766619604368,0.01144,87715.0,87710.0,0.00055]
[1766619604571,0.13569,87715.0,87710.0,0.00055]
[1766619604790,0.13569,87715.0,87709.0,0.01140133]
[1766619604955,0.01139873,87729.0,87710.0,0.01368996]
[1766619605157,0.05699834,87732.0,87717.0,0.01140029]
[1766619605158,0.1356486,87730.0,87717.0,0.01140029]
[1766619605354,0.22796029,87735.0,87712.0,0.06840538]
[1766619605355,0.01139925,87725.0,87712.0,0.06840538]
[1766619605612,0.13569,87724.0,87712.0,0.06840538]
[1766619605997,0.19268703,87724.0,87711.0,0.01144]
[1766619606198,0.01139977,87721.0,87711.0,0.01144]
[1766619606419,0.12425,87721.0,87711.0,0.02284107]
[1766619606596,0.12425,87721.0,87711.0,0.01144]
[1766619606823,0.01140029,87717.0,87711.0,0.01144]
[1766619606998,0.13565029,87717.0,87711.0,0.01144]
[1766619607430,0.12425,87717.0,87711.0,0.01144]
[1766619610275,0.000549,87711.0,87704.0,0.01140198]
[1766619610410,0.12425,87715.0,87705.0,0.02284185]
[1766619611017,0.12425,87715.0,87707.0,0.01140159]
[1766619611303,0.12425,87715.0,87705.0,0.02284185]
[1766619611925,0.12425,87715.0,87706.0,0.01140172]
[1766619612782,0.12425,87715.0,87709.0,0.01368996]
[1766619616498,0.12425,87715.0,87705.0,0.01144]
[1766619616697,0.13565068,87714.0,87701.0,0.01140237]
[1766619616872,0.13565094,87712.0,87701.0,0.02284237]
[1766619617097,0.01140107,87711.0,87701.0,0.01144]
[1766619617259,0.13565107,87711.0,87701.0,0.01144]
[1766619617466,0.13565107,87711.0,87695.0,0.05932462]
[1766619617467,0.01140328,87694.0,87682.0,0.01140484]
[1766619617669,0.12425,87698.0,87687.0,0.01140419]
[1766619617670,0.12425,87696.0,87687.0,0.01140419]
[1766619617926,0.13565302,87696.0,87685.0,0.01140445]
[1766619618180,0.12425,87696.0,87686.0,0.01140432]
[1766619618346,0.12425,87696.0,87689.0,0.01140393]
[1766619618554,0.12425,87696.0,87690.0,0.02509376]
[1766619618761,0.12425,87696.0,87690.0,0.01368996]
[1766619619306,0.12425,87696.0,87690.0,0.02509376]
[1766619619526,0.12425,87696.0,87690.0,0.01368996]
[1766619621961,0.12425,87696.0,87682.0,5.642e-05]
[1766619621962,0.12425,87692.0,87682.0,5.642e-05]
[1766619622134,0.12425,87692.0,87683.0,0.01144]
[1766619622336,0.12425,87690.0,87683.0,0.01144]
[1766619622575,0.13565406,87688.0,87683.0,0.01144]
[1766619622779,0.12425,87688.0,87683.0,0.01144]
[1766619623199,0.12425,87694.0,87683.0,0.01144]
[1766619623364,0.12425,87694.0,87684.0,0.01140458]
[1766619623574,0.12425,87694.0,87685.0,0.01140445]
[1766619623757,0.12425,87694.0,87684.0,0.01140458]
[1766619624318,0.12425,87694.0,87685.0,0.01140445]
[1766619624545,0.1237,87694.0,87685.0,0.06842615]
[1766619624698,0.1237,87694.0,87686.0,0.01140432]
[1766619625099,0.1237,87694.0,87687.0,0.01140419]
[1766619625699,0.01144,87696.0,87687.0,0.01140419]
[1766619625898,0.01144,87696.0,87690.0,0.01368996]
[1766619627037,0.02284302,87696.0,87690.0,0.01368996]
[1766619629208,0.01144,87696.0,87690.0,0.01368996]
[1766619630185,0.01144,87696.0,87685.0,0.01140445]
[1766619630186,0.12427,87695.0,87685.0,0.01140445]
[1766619630396,0.000549,87690.0,87684.0,0.01140458]
[1766619630846,0.12427,87695.0,87685.0,0.01140445]
[1766619631574,0.12427,87695.0,87684.0,0.01140458]
[1766619631715,0.12427,87695.0,87685.0,0.01140445]
[1766619633920,0.12427,87695.0,87686.0,0.01140432]
[1766619634964,0.12427,87695.0,87685.0,0.01140445]
[1766619636585,0.13567315,87695.0,87685.0,0.01140445]
[1766619636784,0.13567315,87695.0,87684.0,0.01140458]
[1766619637124,0.13567315,87695.0,87685.0,0.01140445]
[1766619637850,0.13567315,87695.0,87684.0,0.01140458]
[1766619638432,0.13567315,87695.0,87685.0,0.01140445]
[1766619638625,0.12427,87695.0,87685.0,0.01140445]
[1766619639826,0.13567315,87695.0,87683.0,0.02284471]
[1766619640379,0.01140328,87694.0,87684.0,0.01140458]
[1766619640619,0.13567315,87695.0,87684.0,0.01140458]
[1766619640824,0.13328328,87694.0,87683.0,0.01144]
[1766619641024,0.01140341,87693.0,87683.0,0.01144]
[1766619641539,0.13328328,87694.0,87683.0,0.02284471]
[1766619642341,0.01140341,87693.0,87683.0,0.01144]
[1766619642770,0.01140341,87693.0,87683.0,0.02284471]
[1766619642977,0.01140341,87693.0,87683.0,0.01144]
[1766619643398,0.01110734,87693.0,87683.0,0.01144]
[1766619643751,0.13328328,87694.0,87683.0,0.02284471]
[1766619643951,0.01140341,87693.0,87683.0,0.01144]
[1766619644176,0.13328328,87694.0,87683.0,0.02284471]
[1766619644577,0.13328328,87694.0,87684.0,0.01144]
[1766619644805,0.01140341,87693.0,87684.0,0.01148841]
[1766619645413,0.13328341,87693.0,87684.0,0.01148841]
[1766619645865,0.12188,87693.0,87684.0,0.01148841]
[1766619646078,0.12188,87693.0,87684.0,0.02289299]
[1766619646402,0.12188,87693.0,87685.0,0.01140445]
[1766619647354,0.12188,87693.0,87687.0,0.01140419]
[1766619648139,0.12188,87693.0,87688.0,0.01140406]
[1766619648360,0.12188,87693.0,87688.0,0.01144]
[1766619650991,0.000549,87688.0,87687.0,0.01144]
[1766619651389,0.01140354,87692.0,87687.0,0.01144]
[1766619651891,0.01140367,87691.0,87687.0,0.01144]
[1766619652050,0.01140367,87691.0,87687.0,0.010891]
[1766619652259,0.13328367,87691.0,87687.0,0.010891]
[1766619652590,0.12188,87690.0,87687.0,0.010891]
[1766619654299,0.12188,87690.0,87679.0,0.02514295]
[1766619654501,0.12188,87690.0,87679.0,0.03659977]
[1766619654502,0.1332838,87690.0,87679.0,0.03659977]
[1766619654715,0.12188,87688.0,87679.0,0.02519454]
[1766619655200,0.12188,87688.0,87679.0,0.03659977]
[1766619655805,0.12188,87688.0,87681.0,0.01140497]
[1766619655952,0.12188,87688.0,87680.0,0.0114051]
[1766619656158,0.12188,87688.0,87681.0,0.01140497]
[1766619656352,0.12188,87688.0,87680.0,0.0114051]
[1766619656557,0.12188,87688.0,87679.0,0.03659977]
[1766619657584,0.13328406,87688.0,87679.0,0.02519454]
[1766619657785,0.01140419,87687.0,87679.0,0.02519454]
[1766619657998,0.12188,87684.0,87679.0,0.02519454]
[1766619658373,0.01140419,87687.0,87656.0,0.05704054]
[1766619658374,0.12168,87670.0,87656.0,0.05704054]
[1766619658585,0.12168,87668.0,87657.0,0.0228481]
[1766619658976,0.12168,87668.0,87659.0,0.01140784]
[1766619659381,0.12168,87668.0,87660.0,0.01140771]
[1766619659905,0.12168,87668.0,87661.0,0.01140758]
[1766619660295,0.12168,87668.0,87660.0,0.01140771]
[1766619660909,0.12168,87668.0,87661.0,0.01140758]
[1766619661500,0.12168,87668.0,87658.0,0.01140797]
[1766619661705,0.12168,87668.0,87659.0,0.01140784]
[1766619662144,0.12168,87668.0,87660.0,0.01140771]
[1766619662531,0.12168,87668.0,87662.0,0.01140745]
[1766619662703,0.01140575,87675.0,87663.0,0.01144]
[1766619662910,0.12168,87674.0,87663.0,0.01144]
[1766619663124,0.12168,87674.0,87664.0,0.01140719]
[1766619664610,0.13308589,87674.0,87663.0,0.02284732]
[1766619665247,0.01140602,87673.0,87663.0,0.01144]
[1766619665552,0.13308615,87672.0,87663.0,0.01144]
[1766619665748,0.13308615,87672.0,87663.0,0.010891]
[1766619665749,0.12168,87668.0,87663.0,0.010891]
[1766619668238,0.12168,87668.0,87663.0,0.02229832]
[1766619668453,0.05702684,87678.0,87664.0,0.05703595]
[1766619668670,0.13308562,87676.0,87668.0,0.000549]
[1766619668870,0.13308562,87676.0,87664.0,0.01140719]
[1766619669689,0.13308602,87673.0,87663.0,0.010891]
[1766619669887,0.12168,87673.0,87663.0,0.010891]
[1766619670272,0.12168,87673.0,87666.0,0.01140693]
[1766619670472,0.12168,87673.0,87665.0,0.01140706]
[1766619670690,0.12168,87673.0,87666.0,0.01140693]
[1766619671004,0.12168,87673.0,87667.0,0.0114068]
[1766619671207,0.12168,87673.0,87665.0,0.01140706]
[1766619671504,0.12168,87673.0,87664.0,0.01140719]
[1766619671912,0.12168,87673.0,87663.0,0.010891]
[1766619672110,0.12168,87670.0,87663.0,0.010891]
[1766619675027,0.01140732,87663.0,87656.0,0.00035429]
[1766619675288,0.06844199,87666.0,87657.0,0.01144]
[1766619675492,0.01140719,87664.0,87657.0,0.01144]
[1766619675770,0.01140706,87665.0,87657.0,0.01144]
[1766619676736,0.0114068,87667.0,87657.0,0.01144]
[1766619676958,0.12168,87668.0,87658.0,0.01140797]
[1766619678040,0.12168,87668.0,87659.0,0.01140784]
[1766619681805,0.12168,87668.0,87660.0,0.01140771]
[1766619682209,0.01140628,87671.0,87660.0,0.01140771]
[1766619683054,0.01140641,87670.0,87659.0,0.01140784]
[1766619683229,0.01140628,87671.0,87659.0,0.01140784]
[1766619683534,0.13308628,87671.0,87659.0,0.01140784]
[1766619684530,0.13308628,87671.0,87660.0,0.01140771]
[1766619684728,0.121131,87671.0,87662.0,0.05703725]
[1766619684898,0.121131,87671.0,87662.0,0.01140745]
[1766619688067,0.12094452,87671.0,87662.0,0.01140745]
[1766619688623,0.12094452,87671.0,87661.0,0.01140758]
[1766619689530,0.1323508,87671.0,87660.0,0.01140771]
[1766619689721,0.12094452,87671.0,87661.0,0.01140758]
[1766619691489,0.12094452,87671.0,87662.0,0.01140745]
[1766619692258,0.12094452,87671.0,87661.0,0.01140758]
[1766619692439,0.12094452,87671.0,87662.0,0.01140745]
[1766619692640,0.12094452,87671.0,87659.0,0.05703883]
[1766619692641,0.01140641,87670.0,87658.0,0.01140797]
[1766619694498,0.01140667,87668.0,87657.0,0.0114081]
[1766619694711,0.13332667,87668.0,87657.0,0.0114081]
[1766619694873,0.0114068,87667.0,87658.0,0.01144]
[1766619695278,0.13332667,87668.0,87658.0,0.02284797]
[1766619695708,0.12192,87668.0,87658.0,0.02284797]
[1766619696390,0.13332667,87668.0,87658.0,0.01144]
[1766619698065,0.13332667,87668.0,87658.0,0.02284797]
[1766619698572,0.13332667,87668.0,87658.0,0.01144]
[1766619699495,0.12192,87668.0,87658.0,0.02284797]
[1766619701038,0.12192,87668.0,87661.0,0.01140758]
[1766619701614,0.12192,87668.0,87662.0,0.01140745]
[1766619701818,0.12192,87668.0,87660.0,0.01140771]
[1766619703515,0.12192,87668.0,87658.0,0.01144]
[1766619703516,0.0114068,87667.0,87658.0,0.01144]
[1766619704618,0.13332667,87668.0,87658.0,0.01144]
[1766619705251,0.13332667,87668.0,87658.0,0.02284797]
[1766619705451,0.0114068,87667.0,87658.0,0.01144]
[1766619705663,0.12192,87668.0,87658.0,0.01144]
[1766619705868,0.13332667,87668.0,87658.0,0.01144]
[1766619706781,0.12192,87668.0,87658.0,0.02284797]
[1766619707493,0.13332667,87668.0,87658.0,0.01144]
[1766619707691,0.0114068,87667.0,87658.0,0.01144]
[1766619710382,0.13332667,87668.0,87658.0,0.01144]
[1766619710964,0.12192,87668.0,87658.0,0.02284797]
[1766619711399,0.12192,87668.0,87659.0,0.01140784]
[1766619711594,0.01140641,87670.0,87659.0,0.01140784]
[1766619711811,0.01140628,87671.0,87660.0,0.01140771]
[1766619712366,0.01144,87674.0,87660.0,0.01140771]
[1766619712603,0.01144,87673.0,87667.0,0.0114068]
[1766619712784,0.01144,87673.0,87666.0,0.01140693]
[1766619712954,0.01144,87673.0,87667.0,0.0114068]
[1766619713399,0.01144,87673.0,87666.0,0.01140693]
[1766619713604,0.01144,87673.0,87667.0,0.0114068]
[1766619713784,0.01144,87673.0,87665.0,0.01140706]
[1766619713981,0.01144,87673.0,87663.0,0.06844348]
[1766619714163,0.01144,87673.0,87663.0,0.01140732]
[1766619714369,0.01144,87673.0,87664.0,0.01140719]
[1766619715386,0.01144,87673.0,87665.0,0.01140706]
[1766619715573,0.000549,87665.0,87663.0,0.01140732]
[1766619715768,0.01144,87673.0,87663.0,0.01140732]
[1766619717110,0.12859,87673.0,87663.0,0.01140732]
[1766619719526,0.12859,87673.0,87664.0,0.01140719]
[1766619720015,0.12859,87673.0,87665.0,0.01140706]
[1766619720166,0.12859,87673.0,87664.0,0.01140719]
[1766619720389,0.05702229,87685.0,87665.0,0.01140706]
[1766619720588,0.01140523,87679.0,87669.0,0.01368996]
[1766619720792,0.02284536,87678.0,87669.0,0.01368996]
[1766619721002,0.01144,87678.0,87669.0,0.01368996]
[1766619721252,0.14394536,87678.0,87669.0,0.01368996]
[1766619721485,0.13254,87678.0,87669.0,0.01368996]
[1766619721837,0.1211,87678.0,87669.0,0.01368996]
[1766619722021,0.01144,87677.0,87669.0,0.01368996]
[1766619724961,0.13254,87677.0,87669.0,0.01368996]
[1766619725591,0.13254,87677.0,87670.0,0.01140641]
[1766619725791,0.13254,87677.0,87669.0,0.01368996]
[1766619726194,0.13254,87677.0,87669.0,0.0250965]
[1766619726556,0.13254,87677.0,87669.0,0.01368996]
[1766619728391,0.13254,87677.0,87669.0,0.0250965]
[1766619728684,0.13254,87677.0,87670.0,0.01140641]
[1766619729885,0.01144,87677.0,87670.0,0.01140641]
[1766619730272,0.01144,87677.0,87671.0,0.01140628]
[1766619730607,0.01144,87677.0,87670.0,0.01140641]
[1766619730771,0.01144,87677.0,87669.0,0.0250965]
[1766619731108,0.01144,87677.0,87670.0,0.01140641]
[1766619731320,0.01144,87677.0,87669.0,0.0250965]
[1766619732109,0.01144,87677.0,87670.0,0.01140641]
[1766619732744,0.13254,87677.0,87669.0,0.0250965]
[1766619734430,0.06842862,87683.0,87669.0,0.0250965]
[1766619734431,0.0114038,87690.0,87677.0,0.01194549]
[1766619734584,0.01140406,87688.0,87677.0,0.01140549]
[1766619734775,0.01144,87689.0,87679.0,0.01140523]
[1766619734980,0.01144,87689.0,87678.0,0.01140536]
[1766619735399,0.01144,87689.0,87679.0,0.01140523]
[1766619735604,0.01144,87689.0,87680.0,0.0114051]
[1766619735805,0.01144,87689.0,87678.0,0.01140536]
[1766619736020,0.01144,87689.0,87675.0,0.01140575]
[1766619736021,0.000559,87678.0,87675.0,0.01140575]
[1766619736183,0.01140432,87686.0,87674.0,0.01140589]
[1766619736386,0.01140432,87686.0,87668.0,0.01140667]
[1766619736387,0.01140458,87684.0,87668.0,0.01140667]
[1766619736584,0.09273033,87701.0,87669.0,0.01144]
[1766619736585,0.01140575,87675.0,87669.0,0.01144]
[1766619736808,0.01140575,87675.0,87661.0,0.06844504]
[1766619736809,0.01140589,87674.0,87668.0,0.01144]
[1766619737539,0.01140575,87675.0,87668.0,0.01144]
[1766619738849,0.01140589,87674.0,87668.0,0.01144]
[1766619739170,0.01140589,87674.0,87663.0,0.01140732]
[1766619739308,0.01140589,87674.0,87665.0,0.01144]
[1766619739719,0.13254,87677.0,87665.0,0.01144]
[1766619739963,0.13254,87677.0,87666.0,0.01140693]
[1766619740486,0.13254,87677.0,87665.0,0.01144]
[1766619740487,0.131991,87677.0,87671.0,0.01140628]
[1766619740611,0.01144,87677.0,87670.0,0.01140641]
[1766619740807,0.01144,87677.0,87669.0,0.05703218]
[1766619740808,0.01144,87677.0,87669.0,0.01140654]
[1766619742065,0.000549,87669.0,87665.0,0.01144]
[1766619742418,0.01140575,87675.0,87665.0,0.01144]
[1766619743226,0.01140589,87674.0,87665.0,0.01144]
[1766619743847,0.01140589,87674.0,87662.0,0.01140745]
[1766619744077,0.01140589,87674.0,87663.0,0.01144]
[1766619744685,0.01140589,87674.0,87663.0,0.02284732]
[1766619745589,0.01140602,87673.0,87663.0,0.02284732]
[1766619746159,0.1211,87671.0,87663.0,0.01144]
[1766619747009,0.13250628,87671.0,87663.0,0.01144]
[1766619747804,0.01140654,87669.0,87663.0,0.01144]
[1766619747998,0.13250641,87670.0,87663.0,0.01144]
[1766619748199,0.1211,87670.0,87663.0,0.01144]
[1766619748566,0.1211,87670.0,87660.0,0.01140771]
[1766619748768,0.13254,87670.0,87660.0,0.01140771]
[1766619750422,0.14394641,87670.0,87659.0,0.01144]
[1766619750642,0.14394641,87670.0,87659.0,0.02284784]
[1766619751686,0.01140654,87669.0,87659.0,0.02284784]
[1766619751882,0.14394641,87670.0,87659.0,0.02284784]
[1766619752218,0.01140654,87669.0,87659.0,0.01144]
[1766619754249,0.01140667,87668.0,87659.0,0.01144]
[1766619754599,0.0114068,87667.0,87659.0,0.01144]
[1766619755450,0.01140706,87665.0,87659.0,0.00908038]
[1766619755655,0.01140706,87665.0,87659.0,0.00853138]
[1766619756454,0.01140719,87664.0,87659.0,0.00853138]
[1766619756655,0.01140719,87664.0,87656.0,0.00035429]
[1766619756656,0.18181704,87659.0,87656.0,0.00035429]
[1766619757941,0.11337,87659.0,87656.0,0.00035429]
[1766619761997,0.12477784,87659.0,87656.0,0.00035429]
[1766619762199,0.12477784,87659.0,87656.0,4.29e-06]
[1766619762444,0.11337,87659.0,87656.0,4.29e-06]
[1766619763231,0.12477784,87659.0,87656.0,4.29e-06]
[1766619763401,0.12208,87657.0,87656.0,4.29e-06]
[1766619764619,0.12208,87657.0,87654.0,4.29e-06]
[1766619764620,0.12208,87656.0,87654.0,4.29e-06]
[1766619764932,0.12208,87655.0,87654.0,4.29e-06]
[1766619765850,0.13352,87655.0,87654.0,4.29e-06]
[1766619769028,0.13808776,87655.0,87654.0,4.29e-06]
[1766619777202,0.13352,87655.0,87654.0,4.29e-06]
[1766619780920,0.132971,87655.0,87654.0,4.29e-06]
[1766619794771,0.01144,87655.0,87654.0,4.29e-06]
[1766619795852,0.00028841,87655.0,87654.0,4.29e-06]
[1766619800275,3.35e-06,87656.0,87654.0,4.29e-06]
[1766619800440,0.01144335,87656.0,87654.0,4.29e-06]
[1766619800641,0.01089335,87656.0,87654.0,4.29e-06]
[1766619801156,3.35e-06,87656.0,87654.0,4.29e-06]
[1766619801361,0.03050419,87674.0,87656.0,0.00016098]
[1766619801362,0.12036,87664.0,87656.0,0.00016098]
[1766619801658,8.861e-05,87664.0,87657.0,0.0114081]
[1766619801857,0.03425304,87672.0,87656.0,0.06860997]
[1766619801858,0.01144,87666.0,87662.0,0.05703671]
[1766619802061,0.18879332,87677.0,87656.0,0.01385094]
[1766619802062,0.02445556,87676.0,87664.0,0.01140719]
[1766619802260,0.16601669,87677.0,87664.0,0.01140719]
[1766619802261,0.02284575,87675.0,87664.0,0.01140719]
[1766619802441,0.02284575,87675.0,87663.0,0.01140732]
[1766619802848,0.01144,87675.0,87664.0,0.01140719]
[1766619803248,0.01144,87675.0,87665.0,0.01140706]
[1766619803648,0.01144,87675.0,87666.0,0.01140693]
[1766619804354,0.01144,87675.0,87665.0,0.01140706]
[1766619806053,0.01144,87675.0,87664.0,0.01140719]
[1766619806484,0.01144,87675.0,87665.0,0.01140706]
[1766619806917,0.01144,87675.0,87664.0,0.01140719]
[1766619807130,0.01144,87675.0,87665.0,0.01140706]
[1766619809236,0.01144,87675.0,87666.0,0.01140693]
[1766619810087,0.01144,87675.0,87665.0,0.01140706]
[1766619810622,0.01144,87675.0,87666.0,0.01140693]
[1766619811058,0.01144,87675.0,87661.0,0.01144]
[1766619811059,0.01144,87675.0,87670.0,0.01140641]
[1766619811301,0.12036,87679.0,87670.0,0.01140641]
[1766619811534,0.13185245,87679.0,87673.0,0.01140602]
[1766619811703,0.13185245,87679.0,87672.0,0.01140615]
[1766619812227,0.13185245,87679.0,87671.0,0.01140628]
[1766619812972,0.13185245,87679.0,87672.0,0.01140615]
[1766619813174,0.13185245,87679.0,87673.0,0.01140602]
[1766619813381,0.01149245,87679.0,87673.0,0.01140602]
[1766619813717,0.01149245,87679.0,87672.0,0.01140615]
[1766619815895,0.01149245,87679.0,87673.0,0.01140602]
[1766619816608,0.01149245,87679.0,87672.0,0.01140615]
[1766619817401,0.01149245,87679.0,87671.0,0.01140628]
[1766619817735,0.01149245,87679.0,87670.0,0.01140641]
[1766619818031,5.245e-05,87679.0,87672.0,0.01140615]
[1766619818449,5.245e-05,87679.0,87673.0,0.01140602]
[1766619819160,5.245e-05,87679.0,87674.0,0.01140589]
[1766619819606,5.245e-05,87679.0,87673.0,0.01140602]
[1766619820463,5.245e-05,87679.0,87674.0,0.01140589]
[1766619820663,5.245e-05,87679.0,87673.0,0.01140602]
[1766619820862,5.245e-05,87679.0,87672.0,0.01140615]
[1766619821180,5.245e-05,87679.0,87673.0,0.01140602]
[1766619822756,5.245e-05,87679.0,87674.0,0.01140589]
[1766619823351,5.245e-05,87679.0,87676.0,0.01140562]
[1766619823526,5.245e-05,87679.0,87675.0,0.01140575]
[1766619824265,0.000549,87675.0,87672.0,0.01140615]
[1766619824443,0.000549,87675.0,87671.0,0.06843766]
[1766619824769,5.245e-05,87679.0,87670.0,0.01140641]
[1766619825325,5.245e-05,87679.0,87669.0,0.01140654]
[1766619825655,5.245e-05,87679.0,87660.0,0.01140771]
[1766619825656,0.00055,87669.0,87660.0,0.01140771]
[1766619825874,0.1164,87669.0,87664.0,0.01144]
[1766619826283,0.1164,87669.0,87664.0,0.02284719]
[1766619826634,0.1164,87669.0,87665.0,0.01140706]
[1766619828070,0.1164,87669.0,87664.0,0.02284719]
[1766619828722,0.1164,87669.0,87665.0,0.01140706]
[1766619829102,0.1164,87669.0,87666.0,0.01140693]
[1766619831170,0.1164,87669.0,87665.0,0.01140706]
[1766619834554,0.1164,87669.0,87664.0,0.06844284]